Workbook

Sheet Model
D1: Okres 0 | E1: Okres 1 | F1: Okres 2 | G1: Okres 3 | H1: Okres 4
C3: Nakład inwestycyjny - maszyny | D3: 4000 | H3: Mierniki opłacalności (kopia):
C4: Nakład inwestycyjny - surowce | D4: 500 | G4: NPV | H4: =D98 -> 1721.019567
G5: PI | H5: =D99 -> 1.382448793
C6: Finansowanie przez kapitał własny | D6: 0.4 | G6: IRR | H6: =D100 -> 0.350014104
C7: Finansowanie przez kapitał obcy | D7: =1-D6 -> 0.6
C9: Popyt na Produkt A | E9: 10000 | F9: =E9*(1.1) -> 11000 | G9: =F9*(1.1) -> 12100 | H9: =G9*(1.1) -> 13310
C10: Popyt na Produkt B | E10: 15000 | F10: =E10*(1.08) -> 16200 | G10: =F10*(1.08) -> 17496 | H10: 18895.68
C11: Cena jednostkowa Produkt A | E11: 1 | F11: =E11*1.03 -> 1.03 | G11: =F11*1.03 -> 1.0609 | H11: 1.092727
C12: Cena jednostkowa Produkt B | E12: 0.8 | F12: =E12*0.98 -> 0.784 | G12: =F12*0.98 -> 0.76832 | H12: 0.7529536
C13: Koszt jednostkowy Produkt A | E13: 0.9 | F13: =E13*1.05 -> 0.945 | G13: =F13*1.05 -> 0.99225 | H13: 1.0418625
C14: Koszt jednostkowy Produkt B | E14: 0.65 | F14: =E14*1.01 -> 0.6565 | G14: =F14*1.01 -> 0.663065 | H14: 0.66969565
C15: Koszty stałe (bez amortyzacji) | E15: 500 | F15: =E15 -> 500 | G15: =F15 -> 500 | H15: =G15 -> 500
C17: Amortyzacja (stawka 20% rocznie) | E17: =$D$3*20% -> 800 | F17: =$D$3*20% -> 800 | G17: 800 | H17: 800
C19: Stopa podatku | E19: 0.19 | F19: =E19 -> 0.19 | G19: 0.19 | H19: 0.19
C20: Stopa dyskontowa | E20: 0.15 | F20: 0.15 | G20: 0.15 | H20: 0.15
C22: Liczba dni w okresie | E22: 365 | F22: =E22 -> 365 | G22: =F22 -> 365 | H22: =G22 -> 365
C23: OUZ | E23: 14 | F23: =E23 -> 14 | G23: =F23 -> 14 | H23: 14
C24: OSN | E24: 14 | F24: =E24 -> 14 | G24: 14 | H24: 14
C25: ORZ | E25: 28 | F25: =E25 -> 28 | G25: 28 | H25: 28
C28: Spłata kredytu | D28: Okres 0 | E28: Okres 1 | F28: Okres 2 | G28: Okres 3 | H28: Okres 4
C29: Stan kredytu na początek okresu | D29: 0 | E29: =D32 -> 2700 | F29: =E32 -> 1800 | G29: 900 | H29: 0
C30: Zaciągnięcie w okresie | D30: =(D3+D4)*D7 -> 2700
C31: Spłata kapitału w okresie | E31: =$D$30/3 -> 900 | F31: =$D$30/3 -> 900 | G31: 900
C32: Stan kredytu na koniec okresu | D32: =D29+D30-D31 -> 2700 | E32: =E29+E30-E31 -> 1800 | F32: 900 | G32: 0 | H32: 0
C33: Odsetki w okresie (10%) | E33: =E29*10% -> 270 | F33: =F29*10% -> 180 | G33: 90 | H33: 0
C36: Rachunek zysków i strat | D36: Okres 0 | E36: Okres 1 | F36: Okres 2 | G36: Okres 3 | H36: Okres 4
C37: Przychody ze sprzedaży | E37: =E9*E11+E10*E12 -> 22000 | F37: =F9*F11+F10*F12 -> 24030.8 | G37: 26279.41672 | H37: 28771.76665
C38: - Koszty zmienne | E38: =E9*E13+E10*E14 -> 18750 | F38: =F9*F13+F10*F14 -> 21030.3 | G38: 23607.21024 | H38: 26521.54457
C39: = Marża na sprzedaży | E39: =E37-E38 -> 3250 | F39: =F37-F38 -> 3000.5 | G39: 2672.20648 | H39: 2250.222076
C40: - Koszty stałe | E40: =E15+E17 -> 1300 | F40: =F15+F17 -> 1300 | G40: 1300 | H40: 1300
C41: = Wynik operacyjny | E41: =E39-E40 -> 1950 | F41: =F39-F40 -> 1700.5 | G41: 1372.20648 | H41: 950.2220757 | P41: `
C42: - Odsetki | E42: =E33 -> 270 | F42: =F33 -> 180 | G42: 90 | H42: 0
C43: = Wynik finansowy brutto | E43: =E41-E42 -> 1680 | F43: =F41-F42 -> 1520.5 | G43: 1282.20648 | H43: 950.2220757
C44: - Podatek dochodowy | E44: =IF(E43>0,E43*E19,0) -> 319.2 | F44: =IF(F43>0,F43*F19,0) -> 288.895 | G44: 243.6192312 | H44: 180.5421944
C45: = Wynik finansowy netto | E45: =E43-E44 -> 1360.8 | F45: =F43-F44 -> 1231.605 | G45: 1038.587249 | H45: 769.6798813
C47: Zapotrzebowanie na KON | D47: Okres 0 | E47: Okres 1 | F47: Okres 2 | G47: Okres 3 | H47: Okres 4
C48: Zapasy | D48: =D4 -> 500 | E48: =E23/E22*E38 -> 719.1780822 | F48: =F23/F22*F38 -> 806.6416438 | G48: 905.4820366 | H48: 1017.264723
C49: Należności | E49: =E24/E22*E37 -> 843.8356164 | F49: =F24/F22*F37 -> 921.7293151 | G49: 1007.977628 | H49: 1103.574611
C50: Zobowiązania | E50: =E25/E22*E38 -> 1438.356164 | F50: =F25/F22*F38 -> 1613.283288 | G50: 1810.964073 | H50: 2034.529447
C51: Zapotrzebowanie na KON | D51: =D48+D49-D50 -> 500 | E51: =E48+E49-E50 -> 124.6575342 | F51: 115.0876712 | G51: 102.495591 | H51: 86.30988783
C52: zmiana Zapotrzebowania na KON | D52: =D51 -> 500 | E52: =E51-D51 -> -375.3424658 | F52: =F51-E51 -> -9.569863014 | G52: -12.59208022 | H52: -16.18570318
C54: Przepływy pieniężne
C55: Przepływy operacyjne | D55: =SUM(D56:D59) -> -500 | E55: =SUM(E56:E59) -> 2806.142466 | F55: 2221.174863 | G55: 1941.179329 | H55: 1585.865584
C56: Wynik finansowy netto | D56: =D45 -> 0 | E56: =E45 -> 1360.8 | F56: 1231.605 | G56: 1038.587249 | H56: 769.6798813
C57: + Amortyzacja | D57: =D17 -> 0 | E57: =E17 -> 800 | F57: 800 | G57: 800 | H57: 800
C58: + Odsetki | D58: =D33 -> 0 | E58: =E33 -> 270 | F58: 180 | G58: 90 | H58: 0
C59: - zmiana Zap. na KON | D59: =-D52 -> -500 | E59: =-E52 -> 375.3424658 | F59: 9.569863014 | G59: 12.59208022 | H59: 16.18570318
C60: Przepływy inwestycyjne | D60: =D61 -> -4000 | E60: =E61 -> 0 | F60: 0 | G60: 0 | H60: 0
C61: - Nakład na maszyny | D61: =-D3 -> -4000
C62: Przepływy finansowe | D62: =SUM(D63:D66) -> 4500 | E62: =SUM(E63:E66) -> -1170 | F62: -1080 | G62: -990 | H62: 0
C63: + Wpłata kapitału własnego | D63: =(D3+D4)*D6 -> 1800
C64: + Zaciągnięcie kredytu | D64: =D30 -> 2700 | E64: =E30 -> 0 | F64: 0 | G64: 0 | H64: 0
C65: - Spłata kredytu | D65: =-D31 -> 0 | E65: =-E31 -> -900 | F65: -900 | G65: -900 | H65: 0
C66: - Odsetki | D66: =-D33 -> 0 | E66: =-E33 -> -270 | F66: -180 | G66: -90 | H66: 0
C67: Zmiana środków pieniężnych | D67: =D55+D60+D62 -> 0 | E67: =E55+E60+E62 -> 1636.142466 | F67: 1141.174863 | G67: 951.179329 | H67: 1585.865584
C68: Środki pieniężne na początek | D68: 0 | E68: =D69 -> 0 | F68: =E69 -> 1636.142466 | G68: 2777.317329 | H68: 3728.496658
C69: Środki pieniężne na koniec | D69: =D68+D67 -> 0 | E69: =E68+E67 -> 1636.142466 | F69: 2777.317329 | G69: 3728.496658 | H69: 5314.362242
C71: Bilans
C72: Aktywa ogółem | D72: =D73+D74 -> 4500 | E72: =E73+E74 -> 6399.156164 | F72: 6905.688288 | G72: 7241.956322 | H72: 8235.201577
C73: Aktywa trwałe | D73: =D3 -> 4000 | E73: =D73-E17 -> 3200 | F73: =E73-F17 -> 2400 | G73: 1600 | H73: 800
C74: Aktywa obrotowe | D74: =SUM(D75:D77) -> 500 | E74: =SUM(E75:E77) -> 3199.156164 | F74: 4505.688288 | G74: 5641.956322 | H74: 7435.201577
C75: Zapasy | D75: =D48 -> 500 | E75: =E48 -> 719.1780822 | F75: 806.6416438 | G75: 905.4820366 | H75: 1017.264723
C76: Należności | D76: =D49 -> 0 | E76: 843.8356164 | F76: 921.7293151 | G76: 1007.977628 | H76: 1103.574611
C77: Środki pieniężne | D77: =D69 -> 0 | E77: =E69 -> 1636.142466 | F77: 2777.317329 | G77: 3728.496658 | H77: 5314.362242
C78: Pasywa ogółem | D78: =D79+D83+D84 -> 4500 | E78: =E79+E83+E84 -> 6399.156164 | F78: 6905.688288 | G78: 7241.956322 | H78: 8235.201577
C79: Kapitały własne | D79: =SUM(D80:D82) -> 1800 | E79: =SUM(E80:E82) -> 3160.8 | F79: 4392.405 | G79: 5430.992249 | H79: 6200.67213
C80: Kapitał podstawowy | D80: =D63 -> 1800 | E80: =D80+E63 -> 1800 | F80: =E80+F63 -> 1800 | G80: 1800 | H80: 1800
C81: Nie podzielony wynik | D81: 0 | E81: =D81+D82 -> 0 | F81: =E81+E82 -> 1360.8 | G81: 2592.405 | H81: 3630.992249
C82: Wynik finansowy netto | D82: =D45 -> 0 | E82: =E45 -> 1360.8 | F82: 1231.605 | G82: 1038.587249 | H82: 769.6798813
C83: Zobowiązania długookresowe | D83: =D32 -> 2700 | E83: =E32 -> 1800 | F83: 900 | G83: 0 | H83: 0
C84: Zobowiązania krótkookresowe | D84: =D50 -> 0 | E84: =E50 -> 1438.356164 | F84: 1613.283288 | G84: 1810.964073 | H84: 2034.529447
C85: suma kontrolna | D85: =D72-D78 -> 0 | E85: =E72-E78 -> 0 | F85: 0 | G85: 0 | H85: 0
C88: Przepływy do oceny opłacalności inw.
C89: Przepływy operacyjne | D89: =D55 -> -500 | E89: =E55 -> 2806.142466 | F89: 2221.174863 | G89: 1941.179329 | H89: 1585.865584
C90: - tarcza na odsetkach | D90: =-D33*D19 -> 0 | E90: =-E33*E19 -> -51.3 | F90: -34.2 | G90: -17.1 | H90: 0
C91: Przepływy inwestycyjne | D91: =D60 -> -4000 | E91: =E60 -> 0 | F91: 0 | G91: 0 | H91: 0
C92: Przepływy NCF | D92: =SUM(D89:D91) -> -4500 | E92: =SUM(E89:E91) -> 2754.842466 | F92: 2186.974863 | G92: 1924.079329 | H92: 1585.865584
C93: współczynnik dyskonta | D93: 1 | E93: =D93/(1+E20) -> 0.8695652174 | F93: =E93/(1+F20) -> 0.7561436673 | G93: 0.6575162324 | H93: 0.5717532456
C94: Zdyskontowane przeływy NCF | D94: =D92*D93 -> -4500 | E94: =E92*E93 -> 2395.515188 | F94: 1653.667193 | G94: 1265.113391 | H94: 906.723795
C97: Mierniki opłacalności inwestycji
C98: NPV | D98: =SUM(D94:H94) -> 1721.019567
C99: PI | D99: =SUM(E94:H94)/-D94 -> 1.382448793
C100: IRR | D100: =IRR(D92:H92) -> 0.350014104

Sheet AnalizaWrażliwości
B2: Analiza wrażliwości
C5: nazwa arkusza z planem finansowym: | D5: Model
C7: liczba zmiennych do analizy: | D7: =COUNTA(D12:D29) -> 14
C9: podaj adres komórki z NPV: | D9: D98
E10: Informacje generowane przez makro "Analiza wrażliwości"
B11: Nr | C11: nazwa zmiennej | D11: adres parametru | E11: wartość pierwotna | F11: NPV przy w. pierwotnej | G11: wartość graniczna | H11: NPV przy w. granicznej | I11: % zmiana | J11: |% zmiana|
B12: =IF(C12<>"",ROWS($12:12),"") -> 1 | C12: Cena maszyn | D12: D3 | E12: 4000 | F12: 1721.019567 | G12: 5930.452805 | H12: 0 | I12: 0.4826132012 | J12: 0.4826132012
B13: =IF(C13<>"",ROWS($12:13),"") -> 2 | C13: Wartość zapasów pierwotnych | D13: D4 | E13: 500 | F13: 1721.019567 | G13: 13694.48335 | H13: 0 | I13: 26.3889667 | J13: 26.3889667
B14: =IF(C14<>"",ROWS($12:14),"") -> 3 | C14: Popyt na Produkt A | D14: E9 | E14: 10000 | F14: 1721.019567 | G14: 1426.982288 | H14: 0 | I14: -0.8573017712 | J14: 0.8573017712
B15: =IF(C15<>"",ROWS($12:15),"") -> 4 | C15: Popyt na Produkt B | D15: E10 | E15: 15000 | F15: 1721.019567 | G15: 9264.622308 | H15: 9.094947018e-13 | I15: -0.3823585128 | J15: 0.3823585128
B16: =IF(C16<>"",ROWS($12:16),"") -> 5 | C16: Cena jednostkowa Produkt A | D16: E11 | E16: 1 | F16: 1721.019567 | G16: 0.9365119469 | H16: -4.547473509e-13 | I16: -0.06348805307 | J16: 0.06348805307
B17: =IF(C17<>"",ROWS($12:17),"") -> 6 | C17: Cena jednostkowa Produkt B | D17: E12 | E17: 0.8 | F17: 1721.019567 | G17: 0.7533646942 | H17: 8.98126018e-12 | I17: -0.05829413225 | J17: 0.05829413225
B18: =IF(C18<>"",ROWS($12:18),"") -> 7 | C18: Koszt jednostkowy Produkt A | D18: E13 | E18: 0.9 | F18: 1721.019567 | G18: 0.9617069854 | H18: 6.252776075e-13 | I18: 0.06856331713 | J18: 0.06856331713
B19: =IF(C19<>"",ROWS($12:19),"") -> 8 | C19: Koszt jednostkowy Produkt B | D19: E14 | E19: 0.65 | F19: 1721.019567 | G19: 0.6947072199 | H19: 5.286437954e-12 | I19: 0.06878033826 | J19: 0.06878033826
B20: =IF(C20<>"",ROWS($12:20),"") -> 9 | C20: Koszty stałe (bez amortyzacji) | D20: E15 | E20: 500 | F20: 1721.019567 | G20: 1244.214227 | H20: 0 | I20: 1.488428454 | J20: 1.488428454
B21: =IF(C21<>"",ROWS($12:21),"") -> 10 | C21: Stopa podatku | D21: E19 | E21: 0.19 | F21: 1721.019567 | G21: 0.5787539436 | H21: 0 | I21: 2.046073387 | J21: 2.046073387
B22: =IF(C22<>"",ROWS($12:22),"") -> 11 | C22: Stopa dyskontowa | D22: E20 | E22: 0.15 | F22: 1721.019567 | G22: 0.3500139681 | H22: 0.0008756441916 | I22: 1.333426454 | J22: 1.333426454
B23: =IF(C23<>"",ROWS($12:23),"") -> 12 | C23: OUZ | D23: E23 | E23: 14 | F23: 1721.019567 | G23: 43.36862887 | H23: -1.705302566e-12 | I23: 2.097759205 | J23: 2.097759205
B24: =IF(C24<>"",ROWS($12:24),"") -> 13 | C24: OSN | D24: E24 | E24: 14 | F24: 1721.019567 | G24: 40.65188241 | H24: -9.094947018e-13 | I24: 1.903705886 | J24: 1.903705886
B25: =IF(C25<>"",ROWS($12:25),"") -> 14 | C25: ORZ | D25: E25 | E25: 28 | F25: 1721.019567 | G25: -1.368628868 | H25: 0 | I25: -1.048879602 | J25: 1.048879602
B26: =IF(C26<>"",ROWS($12:26),"") -> 
B27: =IF(C27<>"",ROWS($12:27),"") -> 
B28: =IF(C28<>"",ROWS($12:28),"") -> 
B29: =IF(C29<>"",ROWS($12:29),"") -> 

Sheet AnalizaScenariuszowa
C1: Scenariusz pesymistyczny | J1: Scenariusz typowy | Q1: Scenariusz optymistyczny
C3: Okres 0 | D3: Okres 1 | E3: Okres 2 | F3: Okres 3 | G3: Okres 4 | J3: Okres 0 | K3: Okres 1 | L3: Okres 2 | M3: Okres 3 | N3: Okres 4 | Q3: Okres 0 | R3: Okres 1 | S3: Okres 2 | T3: Okres 3 | U3: Okres 4
B5: Nakład inwestycyjny - maszyny | C5: 4500 | G5: Mierniki opłacalności (kopia): | I5: Nakład inwestycyjny - maszyny | J5: 4000 | N5: Mierniki opłacalności (kopia): | P5: Nakład inwestycyjny - maszyny | Q5: 3900 | U5: Mierniki opłacalności (kopia):
B6: Nakład inwestycyjny - surowce | C6: 600 | F6: NPV | G6: =C100 -> -3180.183339 | I6: Nakład inwestycyjny - surowce | J6: 500 | M6: NPV | N6: =J100 -> 1775.264156 | P6: Nakład inwestycyjny - surowce | Q6: 450 | T6: NPV | U6: =Q100 -> 2463.822957
F7: PI | G7: =C101 -> 0.3764346393 | M7: PI | N7: =J101 -> 1.394503146 | T7: PI | U7: =Q101 -> 1.566396082
B8: Finansowanie przez kapitał własny | C8: 0.4 | F8: IRR | G8: =C102 -> -0.2831391619 | I8: Finansowanie przez kapitał własny | J8: 0.4 | M8: IRR | N8: =J102 -> 0.3558939818 | P8: Finansowanie przez kapitał własny | Q8: 0.4 | T8: IRR | U8: =Q102 -> 0.4383039091
B9: Finansowanie przez kapitał obcy | C9: =1-C8 -> 0.6 | I9: Finansowanie przez kapitał obcy | J9: =1-J8 -> 0.6 | P9: Finansowanie przez kapitał obcy | Q9: =1-Q8 -> 0.6
B11: Popyt na Produkt A | D11: 9000 | E11: =D11*(1.1) -> 9900 | F11: =E11*(1.1) -> 10890 | G11: =F11*(1.1) -> 11979 | I11: Popyt na Produkt A | K11: 10000 | L11: =K11*(1.1) -> 11000 | M11: =L11*(1.1) -> 12100 | N11: =M11*(1.1) -> 13310 | P11: Popyt na Produkt A | R11: 11000 | S11: =R11*(1.1) -> 12100 | T11: =S11*(1.1) -> 13310 | U11: =T11*(1.1) -> 14641
B12: Popyt na Produkt B | D12: 14000 | E12: =D12*(1.08) -> 15120 | F12: =E12*(1.08) -> 16329.6 | G12: 17635.968 | I12: Popyt na Produkt B | K12: 15000 | L12: =K12*(1.08) -> 16200 | M12: =L12*(1.08) -> 17496 | N12: =M12*(1.08) -> 18895.68 | P12: Popyt na Produkt B | R12: 15500 | S12: =R12*(1.08) -> 16740 | T12: =S12*(1.08) -> 18079.2 | U12: =T12*(1.08) -> 19525.536
B13: Cena jednostkowa Produkt A | D13: 0.97 | E13: =D13*1.03 -> 0.9991 | F13: =E13*1.03 -> 1.029073 | G13: 1.05994519 | I13: Cena jednostkowa Produkt A | K13: 1 | L13: =K13*1.03 -> 1.03 | M13: =L13*1.03 -> 1.0609 | N13: =M13*1.03 -> 1.092727 | P13: Cena jednostkowa Produkt A | R13: 1 | S13: =R13*1.03 -> 1.03 | T13: =S13*1.03 -> 1.0609 | U13: =T13*1.03 -> 1.092727
B14: Cena jednostkowa Produkt B | D14: 0.78 | E14: =D14*0.98 -> 0.7644 | F14: =E14*0.98 -> 0.749112 | G14: 0.73412976 | I14: Cena jednostkowa Produkt B | K14: 0.8 | L14: =K14*0.98 -> 0.784 | M14: =L14*0.98 -> 0.76832 | N14: =M14*0.98 -> 0.7529536 | P14: Cena jednostkowa Produkt B | R14: 0.8 | S14: =R14*0.98 -> 0.784 | T14: =S14*0.98 -> 0.76832 | U14: =T14*0.98 -> 0.7529536
B15: Koszt jednostkowy Produkt A | D15: 0.92 | E15: =D15*1.05 -> 0.966 | F15: =E15*1.05 -> 1.0143 | G15: 1.065015 | I15: Koszt jednostkowy Produkt A | K15: 0.9 | L15: =K15*1.05 -> 0.945 | M15: =L15*1.05 -> 0.99225 | N15: =M15*1.05 -> 1.0418625 | P15: Koszt jednostkowy Produkt A | R15: 0.9 | S15: =R15*1.05 -> 0.945 | T15: =S15*1.05 -> 0.99225 | U15: =T15*1.05 -> 1.0418625
B16: Koszt jednostkowy Produkt B | D16: 0.67 | E16: =D16*1.01 -> 0.6767 | F16: =E16*1.01 -> 0.683467 | G16: 0.69030167 | I16: Koszt jednostkowy Produkt B | K16: 0.65 | L16: =K16*1.01 -> 0.6565 | M16: =L16*1.01 -> 0.663065 | N16: =M16*1.01 -> 0.66969565 | P16: Koszt jednostkowy Produkt B | R16: 0.65 | S16: =R16*1.01 -> 0.6565 | T16: =S16*1.01 -> 0.663065 | U16: =T16*1.01 -> 0.66969565
B17: Koszty stałe (bez amortyzacji) | D17: 500 | E17: =D17 -> 500 | F17: =E17 -> 500 | G17: =F17 -> 500 | I17: Koszty stałe (bez amortyzacji) | K17: 500 | L17: =K17 -> 500 | M17: =L17 -> 500 | N17: =M17 -> 500 | P17: Koszty stałe (bez amortyzacji) | R17: 400 | S17: =R17 -> 400 | T17: =S17 -> 400 | U17: =T17 -> 400
B19: Amortyzacja (stawka 20% rocznie) | D19: =$C$5*20% -> 900 | E19: =$C$5*20% -> 900 | F19: 900 | G19: 900 | I19: Amortyzacja (stawka 20% rocznie) | K19: =$C$5*20% -> 900 | L19: =$C$5*20% -> 900 | M19: 900 | N19: 900 | P19: Amortyzacja (stawka 20% rocznie) | R19: =$C$5*20% -> 900 | S19: =$C$5*20% -> 900 | T19: 900 | U19: 900
B21: Stopa podatku | D21: 0.19 | E21: =D21 -> 0.19 | F21: 0.19 | G21: 0.19 | I21: Stopa podatku | K21: 0.19 | L21: =K21 -> 0.19 | M21: =L21 -> 0.19 | N21: =M21 -> 0.19 | P21: Stopa podatku | R21: 0.19 | S21: =R21 -> 0.19 | T21: =S21 -> 0.19 | U21: =T21 -> 0.19
B22: Stopa dyskontowa | D22: 0.15 | E22: 0.15 | F22: 0.15 | G22: 0.15 | I22: Stopa dyskontowa | K22: 0.15 | L22: 0.15 | M22: 0.15 | N22: 0.15 | P22: Stopa dyskontowa | R22: 0.15 | S22: 0.15 | T22: 0.15 | U22: 0.15
B24: Liczba dni w okresie | D24: 365 | E24: =D24 -> 365 | F24: =E24 -> 365 | G24: =F24 -> 365 | I24: Liczba dni w okresie | K24: 365 | L24: =K24 -> 365 | M24: =L24 -> 365 | N24: =M24 -> 365 | P24: Liczba dni w okresie | R24: 365 | S24: =R24 -> 365 | T24: =S24 -> 365 | U24: =T24 -> 365
B25: OUZ | D25: 21 | E25: =D25 -> 21 | F25: =E25 -> 21 | G25: 21 | I25: OUZ | K25: 14 | L25: =K25 -> 14 | M25: =L25 -> 14 | N25: =M25 -> 14 | P25: OUZ | R25: 14 | S25: =R25 -> 14 | T25: =S25 -> 14 | U25: =T25 -> 14
B26: OSN | D26: 28 | E26: =D26 -> 28 | F26: 28 | G26: 28 | I26: OSN | K26: 14 | L26: =K26 -> 14 | M26: 14 | N26: 14 | P26: OSN | R26: 14 | S26: =R26 -> 14 | T26: 14 | U26: 14
B27: ORZ | D27: 28 | E27: =D27 -> 28 | F27: 28 | G27: 28 | I27: ORZ | K27: 28 | L27: =K27 -> 28 | M27: 28 | N27: 28 | P27: ORZ | R27: 28 | S27: =R27 -> 28 | T27: 28 | U27: 28
B30: Spłata kredytu | C30: Okres 0 | D30: Okres 1 | E30: Okres 2 | F30: Okres 3 | G30: Okres 4 | I30: Spłata kredytu | J30: Okres 0 | K30: Okres 1 | L30: Okres 2 | M30: Okres 3 | N30: Okres 4 | P30: Spłata kredytu | Q30: Okres 0 | R30: Okres 1 | S30: Okres 2 | T30: Okres 3 | U30: Okres 4
B31: Stan kredytu na początek okresu | C31: 0 | D31: =C34 -> 3060 | E31: =D34 -> 2040 | F31: 1020 | G31: 0 | I31: Stan kredytu na początek okresu | J31: 0 | K31: =J34 -> 2700 | L31: =K34 -> 1680 | M31: =L34 -> 660 | N31: =M34 -> -360 | P31: Stan kredytu na początek okresu | Q31: 0 | R31: =Q34 -> 2610 | S31: =R34 -> 1590 | T31: =S34 -> 570 | U31: =T34 -> -450
B32: Zaciągnięcie w okresie | C32: =(C5+C6)*C9 -> 3060 | I32: Zaciągnięcie w okresie | J32: =(J5+J6)*J9 -> 2700 | P32: Zaciągnięcie w okresie | Q32: =(Q5+Q6)*Q9 -> 2610
B33: Spłata kapitału w okresie | D33: =$C$32/3 -> 1020 | E33: =$C$32/3 -> 1020 | F33: 1020 | I33: Spłata kapitału w okresie | K33: =$C$32/3 -> 1020 | L33: =$C$32/3 -> 1020 | M33: 1020 | P33: Spłata kapitału w okresie | R33: =$C$32/3 -> 1020 | S33: =$C$32/3 -> 1020 | T33: 1020
B34: Stan kredytu na koniec okresu | C34: =C31+C32-C33 -> 3060 | D34: =D31+D32-D33 -> 2040 | E34: 1020 | F34: 0 | G34: 0 | I34: Stan kredytu na koniec okresu | J34: =J31+J32-J33 -> 2700 | K34: =K31+K32-K33 -> 1680 | L34: 660 | M34: -360 | N34: -360 | P34: Stan kredytu na koniec okresu | Q34: =Q31+Q32-Q33 -> 2610 | R34: =R31+R32-R33 -> 1590 | S34: 570 | T34: -450 | U34: -450
B35: Odsetki w okresie (10%) | D35: =D31*10% -> 306 | E35: =E31*10% -> 204 | F35: 102 | G35: 0 | I35: Odsetki w okresie (10%) | K35: =K31*10% -> 270 | L35: =L31*10% -> 168 | M35: 66 | N35: -36 | P35: Odsetki w okresie (10%) | R35: =R31*10% -> 261 | S35: =S31*10% -> 159 | T35: 57 | U35: -45
B38: Rachunek zysków i strat | C38: Okres 0 | D38: Okres 1 | E38: Okres 2 | F38: Okres 3 | G38: Okres 4 | I38: Rachunek zysków i strat | J38: Okres 0 | K38: Okres 1 | L38: Okres 2 | M38: Okres 3 | N38: Okres 4 | P38: Rachunek zysków i strat | Q38: Okres 0 | R38: Okres 1 | S38: Okres 2 | T38: Okres 3 | U38: Okres 4
B39: Przychody ze sprzedaży | D39: =D11*D13+D12*D14 -> 19650 | E39: =E11*E13+E12*E14 -> 21448.818 | F39: 23439.30429 | G39: 25644.17239 | I39: Przychody ze sprzedaży | K39: =K11*K13+K12*K14 -> 22000 | L39: =L11*L13+L12*L14 -> 24030.8 | M39: 26279.41672 | N39: 28771.76665 | P39: Przychody ze sprzedaży | R39: =R11*R13+R12*R14 -> 23400 | S39: =S11*S13+S12*S14 -> 25587.16 | T39: 28011.18994 | U39: 30700.43863
B40: - Koszty zmienne | D40: =D11*D15+D12*D16 -> 17660 | E40: =E11*E15+E12*E16 -> 19795.104 | F40: 22206.46972 | G40: 24931.95285 | I40: - Koszty zmienne | K40: =K11*K15+K12*K16 -> 18750 | L40: =L11*L15+L12*L16 -> 21030.3 | M40: 23607.21024 | N40: 26521.54457 | P40: - Koszty zmienne | R40: =R11*R15+R12*R16 -> 19975 | S40: =S11*S15+S12*S16 -> 22424.31 | T40: 25194.53225 | U40: 28330.07539
B41: = Marża na sprzedaży | D41: =D39-D40 -> 1990 | E41: =E39-E40 -> 1653.714 | F41: 1232.834562 | G41: 712.2195388 | I41: = Marża na sprzedaży | K41: =K39-K40 -> 3250 | L41: =L39-L40 -> 3000.5 | M41: 2672.20648 | N41: 2250.222076 | P41: = Marża na sprzedaży | R41: =R39-R40 -> 3425 | S41: =S39-S40 -> 3162.85 | T41: 2816.657696 | U41: 2370.363245
B42: - Koszty stałe | D42: =D17+D19 -> 1400 | E42: =E17+E19 -> 1400 | F42: 1400 | G42: 1400 | I42: - Koszty stałe | K42: =K17+K19 -> 1400 | L42: =L17+L19 -> 1400 | M42: 1400 | N42: 1400 | P42: - Koszty stałe | R42: =R17+R19 -> 1300 | S42: =S17+S19 -> 1300 | T42: 1300 | U42: 1300
B43: = Wynik operacyjny | D43: =D41-D42 -> 590 | E43: =E41-E42 -> 253.714 | F43: -167.165438 | G43: -687.7804612 | I43: = Wynik operacyjny | K43: =K41-K42 -> 1850 | L43: =L41-L42 -> 1600.5 | M43: 1272.20648 | N43: 850.2220757 | O43: ` | P43: = Wynik operacyjny | R43: =R41-R42 -> 2125 | S43: =S41-S42 -> 1862.85 | T43: 1516.657696 | U43: 1070.363245
B44: - Odsetki | D44: =D35 -> 306 | E44: =E35 -> 204 | F44: 102 | G44: 0 | I44: - Odsetki | K44: =K35 -> 270 | L44: =L35 -> 168 | M44: 66 | N44: -36 | P44: - Odsetki | R44: =R35 -> 261 | S44: =S35 -> 159 | T44: 57 | U44: -45
B45: = Wynik finansowy brutto | D45: =D43-D44 -> 284 | E45: =E43-E44 -> 49.714 | F45: -269.165438 | G45: -687.7804612 | I45: = Wynik finansowy brutto | K45: =K43-K44 -> 1580 | L45: =L43-L44 -> 1432.5 | M45: 1206.20648 | N45: 886.2220757 | P45: = Wynik finansowy brutto | R45: =R43-R44 -> 1864 | S45: =S43-S44 -> 1703.85 | T45: 1459.657696 | U45: 1115.363245
B46: - Podatek dochodowy | D46: =IF(D45>0,D45*D21,0) -> 53.96 | E46: =IF(E45>0,E45*E21,0) -> 9.44566 | F46: 0 | G46: 0 | I46: - Podatek dochodowy | K46: =IF(K45>0,K45*K21,0) -> 300.2 | L46: =IF(L45>0,L45*L21,0) -> 272.175 | M46: 229.1792312 | N46: 168.3821944 | P46: - Podatek dochodowy | R46: =IF(R45>0,R45*R21,0) -> 354.16 | S46: =IF(S45>0,S45*S21,0) -> 323.7315 | T46: 277.3349622 | U46: 211.9190165
B47: = Wynik finansowy netto | D47: =D45-D46 -> 230.04 | E47: =E45-E46 -> 40.26834 | F47: -269.165438 | G47: -687.7804612 | I47: = Wynik finansowy netto | K47: =K45-K46 -> 1279.8 | L47: =L45-L46 -> 1160.325 | M47: 977.0272488 | N47: 717.8398813 | P47: = Wynik finansowy netto | R47: =R45-R46 -> 1509.84 | S47: =S45-S46 -> 1380.1185 | T47: 1182.322734 | U47: 903.4442281
B49: Zapotrzebowanie na KON | C49: Okres 0 | D49: Okres 1 | E49: Okres 2 | F49: Okres 3 | G49: Okres 4 | I49: Zapotrzebowanie na KON | J49: Okres 0 | K49: Okres 1 | L49: Okres 2 | M49: Okres 3 | N49: Okres 4 | P49: Zapotrzebowanie na KON | Q49: Okres 0 | R49: Okres 1 | S49: Okres 2 | T49: Okres 3 | U49: Okres 4
B50: Zapasy | C50: =C6 -> 600 | D50: =D25/D24*D40 -> 1016.054795 | E50: =E25/E24*E40 -> 1138.896395 | F50: 1277.632505 | G50: 1434.441123 | I50: Zapasy | J50: =J6 -> 500 | K50: =K25/K24*K40 -> 719.1780822 | L50: =L25/L24*L40 -> 806.6416438 | M50: 905.4820366 | N50: 1017.264723 | P50: Zapasy | Q50: =Q6 -> 450 | R50: =R25/R24*R40 -> 766.1643836 | S50: =S25/S24*S40 -> 860.1105205 | T50: 966.3656205 | U50: 1086.633028
B51: Należności | D51: =D26/D24*D39 -> 1507.39726 | E51: =E26/E24*E39 -> 1645.388778 | F51: 1798.083616 | G51: 1967.224183 | I51: Należności | K51: =K26/K24*K39 -> 843.8356164 | L51: =L26/L24*L39 -> 921.7293151 | M51: 1007.977628 | N51: 1103.574611 | P51: Należności | R51: =R26/R24*R39 -> 897.5342466 | S51: =S26/S24*S39 -> 981.4253151 | T51: 1074.401806 | U51: 1177.551071
B52: Zobowiązania | D52: =D27/D24*D40 -> 1354.739726 | E52: =E27/E24*E40 -> 1518.528526 | F52: 1703.510006 | G52: 1912.588164 | I52: Zobowiązania | K52: =K27/K24*K40 -> 1438.356164 | L52: =L27/L24*L40 -> 1613.283288 | M52: 1810.964073 | N52: 2034.529447 | P52: Zobowiązania | R52: =R27/R24*R40 -> 1532.328767 | S52: =S27/S24*S40 -> 1720.221041 | T52: 1932.731241 | U52: 2173.266057
B53: Zapotrzebowanie na KON | C53: =C50+C51-C52 -> 600 | D53: =D50+D51-D52 -> 1168.712329 | E53: 1265.756647 | F53: 1372.206115 | G53: 1489.077142 | I53: Zapotrzebowanie na KON | J53: =J50+J51-J52 -> 500 | K53: =K50+K51-K52 -> 124.6575342 | L53: 115.0876712 | M53: 102.495591 | N53: 86.30988783 | P53: Zapotrzebowanie na KON | Q53: =Q50+Q51-Q52 -> 450 | R53: =R50+R51-R52 -> 131.369863 | S53: 121.3147945 | T53: 108.0361856 | U53: 90.91804226
B54: zmiana Zapotrzebowania na KON | C54: =C53 -> 600 | D54: =D53-C53 -> 568.7123288 | E54: =E53-D53 -> 97.04431781 | F54: 106.4494683 | G54: 116.8710273 | I54: zmiana Zapotrzebowania na KON | J54: =J53 -> 500 | K54: =K53-J53 -> -375.3424658 | L54: =L53-K53 -> -9.569863014 | M54: =M53-L53 -> -12.59208022 | N54: =N53-M53 -> -16.18570318 | P54: zmiana Zapotrzebowania na KON | Q54: =Q53 -> 450 | R54: =R53-Q53 -> -318.630137 | S54: =S53-R53 -> -10.05506849 | T54: =T53-S53 -> -13.27860892 | U54: =U53-T53 -> -17.11814334
B56: Przepływy pieniężne | I56: Przepływy pieniężne | P56: Przepływy pieniężne
B57: Przepływy operacyjne | C57: =SUM(C58:C61) -> -600 | D57: =SUM(D58:D61) -> 867.3276712 | E57: 1047.224022 | F57: 626.3850937 | G57: 95.34851147 | I57: Przepływy operacyjne | J57: =SUM(J58:J61) -> -500 | K57: =SUM(K58:K61) -> 2825.142466 | L57: 2237.894863 | M57: 1955.619329 | N57: 1598.025584 | P57: Przepływy operacyjne | Q57: =SUM(Q58:Q61) -> -450 | R57: =SUM(R58:R61) -> 2989.470137 | S57: 2449.173568 | T57: 2152.601343 | U57: 1775.562371
B58: Wynik finansowy netto | C58: =C47 -> 0 | D58: =D47 -> 230.04 | E58: 40.26834 | F58: -269.165438 | G58: -687.7804612 | I58: Wynik finansowy netto | J58: =J47 -> 0 | K58: =K47 -> 1279.8 | L58: 1160.325 | M58: 977.0272488 | N58: 717.8398813 | P58: Wynik finansowy netto | Q58: =Q47 -> 0 | R58: =R47 -> 1509.84 | S58: 1380.1185 | T58: 1182.322734 | U58: 903.4442281
B59: + Amortyzacja | C59: =C19 -> 0 | D59: =D19 -> 900 | E59: 900 | F59: 900 | G59: 900 | I59: + Amortyzacja | J59: =J19 -> 0 | K59: =K19 -> 900 | L59: 900 | M59: 900 | N59: 900 | P59: + Amortyzacja | Q59: =Q19 -> 0 | R59: =R19 -> 900 | S59: 900 | T59: 900 | U59: 900
B60: + Odsetki | C60: =C35 -> 0 | D60: =D35 -> 306 | E60: 204 | F60: 102 | G60: 0 | I60: + Odsetki | J60: =J35 -> 0 | K60: =K35 -> 270 | L60: 168 | M60: 66 | N60: -36 | P60: + Odsetki | Q60: =Q35 -> 0 | R60: =R35 -> 261 | S60: 159 | T60: 57 | U60: -45
B61: - zmiana Zap. na KON | C61: =-C54 -> -600 | D61: =-D54 -> -568.7123288 | E61: -97.04431781 | F61: -106.4494683 | G61: -116.8710273 | I61: - zmiana Zap. na KON | J61: =-J54 -> -500 | K61: =-K54 -> 375.3424658 | L61: 9.569863014 | M61: 12.59208022 | N61: 16.18570318 | P61: - zmiana Zap. na KON | Q61: =-Q54 -> -450 | R61: =-R54 -> 318.630137 | S61: 10.05506849 | T61: 13.27860892 | U61: 17.11814334
B62: Przepływy inwestycyjne | C62: =C63 -> -4500 | D62: =D63 -> 0 | E62: 0 | F62: 0 | G62: 0 | I62: Przepływy inwestycyjne | J62: =J63 -> -4000 | K62: =K63 -> 0 | L62: 0 | M62: 0 | N62: 0 | P62: Przepływy inwestycyjne | Q62: =Q63 -> -3900 | R62: =R63 -> 0 | S62: 0 | T62: 0 | U62: 0
B63: - Nakład na maszyny | C63: =-C5 -> -4500 | I63: - Nakład na maszyny | J63: =-J5 -> -4000 | P63: - Nakład na maszyny | Q63: =-Q5 -> -3900
B64: Przepływy finansowe | C64: =SUM(C65:C68) -> 5100 | D64: =SUM(D65:D68) -> -1326 | E64: -1224 | F64: -1122 | G64: 0 | I64: Przepływy finansowe | J64: =SUM(J65:J68) -> 4500 | K64: =SUM(K65:K68) -> -1290 | L64: -1188 | M64: -1086 | N64: 36 | P64: Przepływy finansowe | Q64: =SUM(Q65:Q68) -> 4350 | R64: =SUM(R65:R68) -> -1281 | S64: -1179 | T64: -1077 | U64: 45
B65: + Wpłata kapitału własnego | C65: =(C5+C6)*C8 -> 2040 | I65: + Wpłata kapitału własnego | J65: =(J5+J6)*J8 -> 1800 | P65: + Wpłata kapitału własnego | Q65: =(Q5+Q6)*Q8 -> 1740
B66: + Zaciągnięcie kredytu | C66: =C32 -> 3060 | D66: =D32 -> 0 | E66: 0 | F66: 0 | G66: 0 | I66: + Zaciągnięcie kredytu | J66: =J32 -> 2700 | K66: =K32 -> 0 | L66: 0 | M66: 0 | N66: 0 | P66: + Zaciągnięcie kredytu | Q66: =Q32 -> 2610 | R66: =R32 -> 0 | S66: 0 | T66: 0 | U66: 0
B67: - Spłata kredytu | C67: =-C33 -> 0 | D67: =-D33 -> -1020 | E67: -1020 | F67: -1020 | G67: 0 | I67: - Spłata kredytu | J67: =-J33 -> 0 | K67: =-K33 -> -1020 | L67: -1020 | M67: -1020 | N67: 0 | P67: - Spłata kredytu | Q67: =-Q33 -> 0 | R67: =-R33 -> -1020 | S67: -1020 | T67: -1020 | U67: 0
B68: - Odsetki | C68: =-C35 -> 0 | D68: =-D35 -> -306 | E68: -204 | F68: -102 | G68: 0 | I68: - Odsetki | J68: =-J35 -> 0 | K68: =-K35 -> -270 | L68: -168 | M68: -66 | N68: 36 | P68: - Odsetki | Q68: =-Q35 -> 0 | R68: =-R35 -> -261 | S68: -159 | T68: -57 | U68: 45
B69: Zmiana środków pieniężnych | C69: =C57+C62+C64 -> 0 | D69: =D57+D62+D64 -> -458.6723288 | E69: -176.7759778 | F69: -495.6149063 | G69: 95.34851147 | I69: Zmiana środków pieniężnych | J69: =J57+J62+J64 -> 0 | K69: =K57+K62+K64 -> 1535.142466 | L69: 1049.894863 | M69: 869.619329 | N69: 1634.025584 | P69: Zmiana środków pieniężnych | Q69: =Q57+Q62+Q64 -> 0 | R69: =R57+R62+R64 -> 1708.470137 | S69: 1270.173568 | T69: 1075.601343 | U69: 1820.562371
B70: Środki pieniężne na początek | C70: 0 | D70: =C71 -> 0 | E70: =D71 -> -458.6723288 | F70: -635.4483066 | G70: -1131.063213 | I70: Środki pieniężne na początek | J70: 0 | K70: =J71 -> 0 | L70: =K71 -> 1535.142466 | M70: =L71 -> 2585.037329 | N70: =M71 -> 3454.656658 | P70: Środki pieniężne na początek | Q70: 0 | R70: =Q71 -> 0 | S70: =R71 -> 1708.470137 | T70: =S71 -> 2978.643705 | U70: =T71 -> 4054.245048
B71: Środki pieniężne na koniec | C71: =C70+C69 -> 0 | D71: =D70+D69 -> -458.6723288 | E71: -635.4483066 | F71: -1131.063213 | G71: -1035.714701 | I71: Środki pieniężne na koniec | J71: =J70+J69 -> 0 | K71: =K70+K69 -> 1535.142466 | L71: 2585.037329 | M71: 3454.656658 | N71: 5088.682242 | P71: Środki pieniężne na koniec | Q71: =Q70+Q69 -> 0 | R71: =R70+R69 -> 1708.470137 | S71: 2978.643705 | T71: 4054.245048 | U71: 5874.80742
B73: Bilans | I73: Bilans | P73: Bilans
B74: Aktywa ogółem | C74: =C75+C76 -> 5100 | D74: =D75+D76 -> 5664.779726 | E74: 4848.836866 | F74: 3744.652908 | G74: 3265.950604 | I74: Aktywa ogółem | J74: =J75+J76 -> 4500 | K74: =K75+K76 -> 6198.156164 | L74: 6513.408288 | M74: 6668.116322 | N74: 7609.521577 | P74: Aktywa ogółem | Q74: =Q75+Q76 -> 4350 | R74: =R75+R76 -> 6372.168767 | S74: 6920.179541 | T74: 7295.012475 | U74: 8438.991519
B75: Aktywa trwałe | C75: =C5 -> 4500 | D75: =C75-D19 -> 3600 | E75: =D75-E19 -> 2700 | F75: 1800 | G75: 900 | I75: Aktywa trwałe | J75: =J5 -> 4000 | K75: =J75-K19 -> 3100 | L75: =K75-L19 -> 2200 | M75: =L75-M19 -> 1300 | N75: =M75-N19 -> 400 | P75: Aktywa trwałe | Q75: =Q5 -> 3900 | R75: =Q75-R19 -> 3000 | S75: =R75-S19 -> 2100 | T75: =S75-T19 -> 1200 | U75: =T75-U19 -> 300
B76: Aktywa obrotowe | C76: =SUM(C77:C79) -> 600 | D76: =SUM(D77:D79) -> 2064.779726 | E76: 2148.836866 | F76: 1944.652908 | G76: 2365.950604 | I76: Aktywa obrotowe | J76: =SUM(J77:J79) -> 500 | K76: =SUM(K77:K79) -> 3098.156164 | L76: 4313.408288 | M76: 5368.116322 | N76: 7209.521577 | P76: Aktywa obrotowe | Q76: =SUM(Q77:Q79) -> 450 | R76: =SUM(R77:R79) -> 3372.168767 | S76: 4820.179541 | T76: 6095.012475 | U76: 8138.991519
B77: Zapasy | C77: =C50 -> 600 | D77: =D50 -> 1016.054795 | E77: 1138.896395 | F77: 1277.632505 | G77: 1434.441123 | I77: Zapasy | J77: =J50 -> 500 | K77: =K50 -> 719.1780822 | L77: 806.6416438 | M77: 905.4820366 | N77: 1017.264723 | P77: Zapasy | Q77: =Q50 -> 450 | R77: =R50 -> 766.1643836 | S77: 860.1105205 | T77: 966.3656205 | U77: 1086.633028
B78: Należności | C78: =C51 -> 0 | D78: 1507.39726 | E78: 1645.388778 | F78: 1798.083616 | G78: 1967.224183 | I78: Należności | J78: =J51 -> 0 | K78: =K51 -> 843.8356164 | L78: 921.7293151 | M78: 1007.977628 | N78: 1103.574611 | P78: Należności | Q78: =Q51 -> 0 | R78: =R51 -> 897.5342466 | S78: 981.4253151 | T78: 1074.401806 | U78: 1177.551071
B79: Środki pieniężne | C79: =C71 -> 0 | D79: =D71 -> -458.6723288 | E79: -635.4483066 | F79: -1131.063213 | G79: -1035.714701 | I79: Środki pieniężne | J79: =J71 -> 0 | K79: =K71 -> 1535.142466 | L79: 2585.037329 | M79: 3454.656658 | N79: 5088.682242 | P79: Środki pieniężne | Q79: =Q71 -> 0 | R79: =R71 -> 1708.470137 | S79: 2978.643705 | T79: 4054.245048 | U79: 5874.80742
B80: Pasywa ogółem | C80: =C81+C85+C86 -> 5100 | D80: =D81+D85+D86 -> 5664.779726 | E80: 4848.836866 | F80: 3744.652908 | G80: 3265.950604 | I80: Pasywa ogółem | J80: =J81+J85+J86 -> 4500 | K80: =K81+K85+K86 -> 6198.156164 | L80: 6513.408288 | M80: 6668.116322 | N80: 7609.521577 | P80: Pasywa ogółem | Q80: =Q81+Q85+Q86 -> 4350 | R80: =R81+R85+R86 -> 6372.168767 | S80: 6920.179541 | T80: 7295.012475 | U80: 8438.991519
B81: Kapitały własne | C81: =SUM(C82:C84) -> 2040 | D81: =SUM(D82:D84) -> 2270.04 | E81: 2310.30834 | F81: 2041.142902 | G81: 1353.362441 | I81: Kapitały własne | J81: =SUM(J82:J84) -> 1800 | K81: =SUM(K82:K84) -> 3079.8 | L81: 4240.125 | M81: 5217.152249 | N81: 5934.99213 | P81: Kapitały własne | Q81: =SUM(Q82:Q84) -> 1740 | R81: =SUM(R82:R84) -> 3249.84 | S81: 4629.9585 | T81: 5812.281234 | U81: 6715.725462
B82: Kapitał podstawowy | C82: =C65 -> 2040 | D82: =C82+D65 -> 2040 | E82: =D82+E65 -> 2040 | F82: 2040 | G82: 2040 | I82: Kapitał podstawowy | J82: =J65 -> 1800 | K82: =J82+K65 -> 1800 | L82: =K82+L65 -> 1800 | M82: =L82+M65 -> 1800 | N82: =M82+N65 -> 1800 | P82: Kapitał podstawowy | Q82: =Q65 -> 1740 | R82: =Q82+R65 -> 1740 | S82: =R82+S65 -> 1740 | T82: =S82+T65 -> 1740 | U82: =T82+U65 -> 1740
B83: Nie podzielony wynik | C83: 0 | D83: =C83+C84 -> 0 | E83: =D83+D84 -> 230.04 | F83: 270.30834 | G83: 1.142902 | I83: Nie podzielony wynik | J83: 0 | K83: =J83+J84 -> 0 | L83: =K83+K84 -> 1279.8 | M83: =L83+L84 -> 2440.125 | N83: =M83+M84 -> 3417.152249 | P83: Nie podzielony wynik | Q83: 0 | R83: =Q83+Q84 -> 0 | S83: =R83+R84 -> 1509.84 | T83: =S83+S84 -> 2889.9585 | U83: =T83+T84 -> 4072.281234
B84: Wynik finansowy netto | C84: =C47 -> 0 | D84: =D47 -> 230.04 | E84: 40.26834 | F84: -269.165438 | G84: -687.7804612 | I84: Wynik finansowy netto | J84: =J47 -> 0 | K84: =K47 -> 1279.8 | L84: 1160.325 | M84: 977.0272488 | N84: 717.8398813 | P84: Wynik finansowy netto | Q84: =Q47 -> 0 | R84: =R47 -> 1509.84 | S84: 1380.1185 | T84: 1182.322734 | U84: 903.4442281
B85: Zobowiązania długookresowe | C85: =C34 -> 3060 | D85: =D34 -> 2040 | E85: 1020 | F85: 0 | G85: 0 | I85: Zobowiązania długookresowe | J85: =J34 -> 2700 | K85: =K34 -> 1680 | L85: 660 | M85: -360 | N85: -360 | P85: Zobowiązania długookresowe | Q85: =Q34 -> 2610 | R85: =R34 -> 1590 | S85: 570 | T85: -450 | U85: -450
B86: Zobowiązania krótkookresowe | C86: =C52 -> 0 | D86: =D52 -> 1354.739726 | E86: 1518.528526 | F86: 1703.510006 | G86: 1912.588164 | I86: Zobowiązania krótkookresowe | J86: =J52 -> 0 | K86: =K52 -> 1438.356164 | L86: 1613.283288 | M86: 1810.964073 | N86: 2034.529447 | P86: Zobowiązania krótkookresowe | Q86: =Q52 -> 0 | R86: =R52 -> 1532.328767 | S86: 1720.221041 | T86: 1932.731241 | U86: 2173.266057
B87: suma kontrolna | C87: =C74-C80 -> 0 | D87: =D74-D80 -> 0 | E87: 0 | F87: 0 | G87: 0 | I87: suma kontrolna | J87: =J74-J80 -> 0 | K87: =K74-K80 -> 0 | L87: 0 | M87: 0 | N87: 0 | P87: suma kontrolna | Q87: =Q74-Q80 -> 0 | R87: =R74-R80 -> 0 | S87: 0 | T87: 0 | U87: 0
B90: Przepływy do oceny opłacalności inw. | I90: Przepływy do oceny opłacalności inw. | P90: Przepływy do oceny opłacalności inw.
B91: Przepływy operacyjne | C91: =C57 -> -600 | D91: =D57 -> 867.3276712 | E91: 1047.224022 | F91: 626.3850937 | G91: 95.34851147 | I91: Przepływy operacyjne | J91: =J57 -> -500 | K91: =K57 -> 2825.142466 | L91: 2237.894863 | M91: 1955.619329 | N91: 1598.025584 | P91: Przepływy operacyjne | Q91: =Q57 -> -450 | R91: =R57 -> 2989.470137 | S91: 2449.173568 | T91: 2152.601343 | U91: 1775.562371
B92: - tarcza na odsetkach | C92: =-C35*C21 -> 0 | D92: =-D35*D21 -> -58.14 | E92: -38.76 | F92: -19.38 | G92: 0 | I92: - tarcza na odsetkach | J92: =-J35*J21 -> 0 | K92: =-K35*K21 -> -51.3 | L92: -31.92 | M92: -12.54 | N92: 6.84 | P92: - tarcza na odsetkach | Q92: =-Q35*Q21 -> 0 | R92: =-R35*R21 -> -49.59 | S92: -30.21 | T92: -10.83 | U92: 8.55
B93: Przepływy inwestycyjne | C93: =C62 -> -4500 | D93: =D62 -> 0 | E93: 0 | F93: 0 | G93: 0 | I93: Przepływy inwestycyjne | J93: =J62 -> -4000 | K93: =K62 -> 0 | L93: 0 | M93: 0 | N93: 0 | P93: Przepływy inwestycyjne | Q93: =Q62 -> -3900 | R93: =R62 -> 0 | S93: 0 | T93: 0 | U93: 0
B94: Przepływy NCF | C94: =SUM(C91:C93) -> -5100 | D94: =SUM(D91:D93) -> 809.1876712 | E94: 1008.464022 | F94: 607.0050937 | G94: 95.34851147 | I94: Przepływy NCF | J94: =SUM(J91:J93) -> -4500 | K94: =SUM(K91:K93) -> 2773.842466 | L94: 2205.974863 | M94: 1943.079329 | N94: 1604.865584 | P94: Przepływy NCF | Q94: =SUM(Q91:Q93) -> -4350 | R94: =SUM(R91:R93) -> 2939.880137 | S94: 2418.963568 | T94: 2141.771343 | U94: 1784.112371
B95: współczynnik dyskonta | C95: 1 | D95: =C95/(1+D22) -> 0.8695652174 | E95: =D95/(1+E22) -> 0.7561436673 | F95: 0.6575162324 | G95: 0.5717532456 | I95: współczynnik dyskonta | J95: 1 | K95: =J95/(1+K22) -> 0.8695652174 | L95: =K95/(1+L22) -> 0.7561436673 | M95: =L95/(1+M22) -> 0.6575162324 | N95: =M95/(1+N22) -> 0.5717532456 | P95: współczynnik dyskonta | Q95: 1 | R95: =Q95/(1+R22) -> 0.8695652174 | S95: =R95/(1+S22) -> 0.7561436673 | T95: =S95/(1+T22) -> 0.6575162324 | U95: =T95/(1+U22) -> 0.5717532456
B96: Zdyskontowane przeływy NCF | C96: =C94*C95 -> -5100 | D96: =D94*D95 -> 703.6414532 | E96: 762.5436841 | F96: 399.1157023 | G96: 54.51582089 | I96: Zdyskontowane przeływy NCF | J96: =J94*J95 -> -4500 | K96: =K94*K95 -> 2412.036927 | L96: 1668.033923 | M96: 1277.6062 | N96: 917.5871067 | P96: Zdyskontowane przeływy NCF | Q96: =Q94*Q95 -> -4350 | R96: =R94*R95 -> 2556.41751 | S96: 1829.083984 | T96: 1408.249424 | U96: 1020.072039
B99: Mierniki opłacalności inwestycji | I99: Mierniki opłacalności inwestycji | P99: Mierniki opłacalności inwestycji
B100: NPV | C100: =SUM(C96:G96) -> -3180.183339 | I100: NPV | J100: =SUM(J96:N96) -> 1775.264156 | P100: NPV | Q100: =SUM(Q96:U96) -> 2463.822957
B101: PI | C101: =SUM(D96:G96)/-C96 -> 0.3764346393 | I101: PI | J101: =SUM(K96:N96)/-J96 -> 1.394503146 | P101: PI | Q101: =SUM(R96:U96)/-Q96 -> 1.566396082
B102: IRR | C102: =IFERROR(IRR(C94:G94),"-") -> -0.2831391619 | I102: IRR | J102: =IFERROR(IRR(J94:N94),"-") -> 0.3558939818 | P102: IRR | Q102: =IFERROR(IRR(Q94:U94),"-") -> 0.4383039091
I109: Podsumowanie anlizy scenariuszowej:
J110: p | K110: NPV
I111: scenariusz pesymistyczny | J111: 0.25 | K111: =C100 -> -3180.183339
I112: scenariusz typowy | J112: 0.5 | K112: =J100 -> 1775.264156
I113: scenariusz optymistyczny | J113: 0.25 | K113: =Q100 -> 2463.822957
I115: Wartość oczekiwana NPV = | J115: =SUMPRODUCT(J111:J113,K111:K113) -> 708.5419824
I116: Odch.standardowe NPV = | J116: =SUMPRODUCT(J111:J113,(K111:K113-J115)^2)^0.5 -> 2262.685811
I117: Wsp.zmienności NPV = | J117: =J116/J115 -> 3.193439299
